bitfinex/quotes_ETHUSD_20220202
["timestamp","ask_amount","ask_price","bid_price","bid_amount"]
[1643837866307,0.18933,2629.4,2627.6,0.01287332]
[1643837866508,0.1902,2629.3,2629.0,0.19133871]
[1643837866710,0.1902,2629.3,2627.7,3e-05]
[1643837866913,0.1902,2629.3,2628.4,0.00096]
[1643837867122,0.1901,2629.8,2628.5,0.99999999]
[1643837867309,0.1901,2629.8,2628.6,3e-05]
[1643837867508,0.18933,2630.3,2628.7,1.08895]
[1643837867710,0.19,2630.7,2629.8,0.76435964]
[1643837867913,0.00378277,2630.1,2629.9,3e-05]
[1643837868108,7.300569,2630.8,2629.9,3e-05]
[1643837868109,5.903669,2630.8,2630.0,5.2]
[1643837868310,23.10417391,2631.5,2630.1,2.35]
[1643837868563,23.10417391,2631.5,2630.2,0.0124154]
[1643837868564,22.72624789,2631.5,2630.2,0.0124154]
[1643837868753,22.72624789,2631.5,2630.1,0.99999999]
[1643837868754,6.01322472,2631.5,2630.4,3.4]
[1643837868955,6.01322472,2631.5,2631.1,0.22405961]
[1643837869155,6.01322472,2631.5,2630.2,0.00096]
[1643837869156,1.76328,2631.4,2630.2,0.00096]
[1643837869356,5.32916998,2631.3,2630.2,0.00096]
[1643837869559,5.32916998,2631.3,2628.9,0.21457]
[1643837869560,2.8002,2631.3,2629.5,1.00095999]
[1643837869756,1.10917,2631.0,2629.8,0.99999999]
[1643837869955,0.01283872,2631.4,2629.8,0.99999999]
[1643837870162,0.01283872,2631.4,2630.0,0.76818842]
[1643837870163,1.69103,2631.3,2630.0,0.76818842]
[1643837870658,1.69103,2631.3,2629.9,0.00096]
[1643837870659,2.71829998,2631.2,2629.9,0.00096]
[1643837870856,0.01229399,2630.8,2629.7,0.00096]
[1643837871065,2.07036,2630.7,2629.7,0.00096]
[1643837871256,2.07036,2630.7,2629.7,0.20455884]
[1643837871458,0.85773522,2630.3,2629.7,0.20359884]
[1643837871656,0.85773522,2630.3,2628.7,0.00096]
[1643837871657,1.88036,2630.2,2628.7,0.00096]
[1643837871858,1.10917,2630.1,2628.7,0.00096]
[1643837872059,1.10917,2630.1,2628.2,0.00096]
[1643837872060,2.07036,2630.0,2628.2,0.00096]
[1643837872309,0.01203239,2629.7,2628.2,0.00096]
[1643837872509,0.7687505,2629.4,2628.3,0.87541018]
[1643837872706,2.07036,2629.6,2629.0,0.17511171]
[1643837872707,0.19,2629.3,2629.0,0.17511171]
[1643837872906,1.88036,2629.6,2629.0,0.17511171]
[1643837872907,0.1902,2629.5,2629.0,0.17511171]
[1643837873106,1.69103,2629.6,2629.0,0.17511171]
[1643837873308,1.88103,2629.6,2629.0,0.17511171]
[1643837873505,1.88103,2629.6,2628.0,4.78638449]
[1643837873506,1.88103,2629.6,2628.6,0.21457]
[1643837873710,0.13819997,2630.0,2628.7,0.448]
[1643837873906,1.13819996,2630.0,2629.8,0.17439868]
[1643837874106,0.99999999,2630.0,2629.8,0.17439868]
[1643837874307,0.99999999,2629.9,2629.8,0.19302355]
[1643837874511,0.99999999,2630.0,2629.8,0.17439868]
[1643837875108,0.19,2630.7,2629.9,2.95]
[1643837875311,0.3008,2633.0,2630.3,0.99999999]
[1643837875312,0.19,2631.4,2630.3,0.99999999]
[1643837875511,0.35,2632.4,2630.4,1.44799999]
[1643837875712,1.07164,2632.4,2630.5,0.21457]
[1643837875957,1.07164,2632.4,2630.6,0.638]
[1643837875958,0.88164,2632.4,2630.6,0.638]
[1643837876160,1.07164,2632.4,2632.0,0.21724381]
[1643837876366,1.07164,2632.4,2630.7,2.59368112]
[1643837876560,0.18933,2632.7,2631.3,0.3996]
[1643837876561,0.37933,2632.7,2631.3,0.3996]
[1643837876759,0.1899,2633.1,2631.3,1.23375843]
[1643837876957,0.37923,2633.1,2631.4,0.448]
[1643837877157,6.51024157,2631.3,2631.2,0.448]
[1643837877357,6.51024157,2631.3,2631.0,0.00096]
[1643837877358,0.7013275,2632.1,2631.0,0.8044104]
[1643837877558,0.01211486,2632.3,2631.0,0.8044104]
[1643837877559,0.01722445,2632.3,2631.0,0.8044104]
[1643837877759,2.445e-05,2632.3,2631.1,0.70447]
[1643837877958,2.445e-05,2632.3,2631.1,1.15973843]
[1643837878157,15.4256,2631.5,2631.1,1.15973843]
[1643837878369,6.67799241,2631.5,2631.2,0.99999999]
[1643837878560,6.67799241,2631.5,2631.3,0.638]
[1643837878762,4.87799241,2631.5,2631.4,4.85224302]
[1643837878962,0.75817761,2633.0,2631.5,5.2]
[1643837878963,0.01282053,2633.0,2631.5,5.2]
[1643837879161,0.27639994,2633.2,2631.6,0.448]
[1643837879359,0.27639994,2633.2,2631.7,0.19875879]
[1643837879812,0.13819997,2633.2,2631.8,0.448]
[1643837880020,0.18933,2633.5,2631.9,0.40447]
[1643837880021,0.72185931,2633.5,2631.9,0.40447]
[1643837880214,0.02,2633.9,2632.0,1.44799999]
[1643837880413,0.1899,2633.8,2632.1,0.1897]
[1643837880616,0.1899,2633.8,2632.2,1.44799999]
[1643837880816,0.1488,2635.2,2632.2,1.44799999]
[1643837880817,0.1897,2634.0,2632.3,1.93838338]
[1643837881013,2.80187298,2635.6,2632.4,0.448]
[1643837881014,0.20215028,2634.9,2632.4,0.448]
[1643837881212,1.11107479,2634.5,2633.4,0.79364352]
[1643837881412,0.02,2634.4,2632.9,0.45256008]
[1643837881617,0.1897,2634.8,2632.9,0.45256008]
[1643837881618,0.18933,2634.7,2632.9,0.45256008]
[1643837881813,0.18933,2634.7,2632.3,0.1897]
[1643837881815,0.01263435,2633.5,2632.3,0.1897]
[1643837882212,0.18933,2634.3,2632.3,0.1897]
[1643837882213,0.00575025,2633.1,2632.3,0.1897]
[1643837882413,0.00575025,2633.1,2632.3,1.0795306]
[1643837882612,0.00575025,2633.1,2632.3,0.1897]
[1643837882812,0.00575025,2633.1,2632.3,0.40427]
[1643837883218,0.00575025,2633.1,2632.3,0.70427]
[1643837883483,0.00575025,2633.1,2632.2,0.1899]
[1643837883672,0.00511413,2632.8,2632.1,0.38111183]
[1643837883871,0.01752891,2632.8,2631.7,0.1899]
[1643837884071,0.01752891,2632.8,2631.6,0.1899]
[1643837884274,0.01752891,2632.8,2631.3,0.1899]
[1643837884471,0.01752891,2632.8,2630.8,1.6875]
[1643837884472,0.00885639,2632.7,2631.2,0.1899]
[1643837884671,0.19875639,2632.7,2630.9,0.1899]
[1643837884871,0.18933,2632.6,2631.6,0.16980352]
[1643837885071,0.94114274,2631.7,2630.8,1.2395]
[1643837885472,0.94114274,2631.7,2630.5,0.00132473]
[1643837885473,3.28883374,2631.6,2630.5,0.00132473]
[1643837885675,3.28883374,2631.6,2629.8,0.19]
[1643837885676,0.01278259,2631.4,2629.8,0.19]
[1643837885875,0.01224685,2630.6,2629.7,0.00096]
[1643837886174,0.9195904,2630.6,2630.5,0.00132473]
[1643837886373,0.01069514,2630.6,2630.5,0.00132473]
[1643837886675,0.19,2631.0,2630.5,0.00132473]
[1643837886877,1.5,2631.1,2629.5,0.01234336]
[1643837887075,1.5,2631.1,2629.7,0.21457]
[1643837887330,1.5,2631.1,2630.4,0.00441583]
[1643837887631,1.5,2631.1,2630.5,0.21895267]
[1643837888329,1.5,2631.1,2630.2,0.52730879]
[1643837888330,1.5,2631.1,2630.2,0.01273879]
[1643837888534,1.5,2631.1,2630.5,0.00441576]
[1643837888833,2.95660852,2631.0,2630.5,0.00441576]
[1643837889030,0.19,2630.9,2630.5,0.00441576]
[1643837889230,1.5,2631.1,2630.5,0.00441576]
[1643837889231,0.19,2631.0,2630.5,0.00441576]
[1643837889431,1.5,2631.1,2629.4,0.99999999]
[1643837889432,1.69,2631.1,2630.6,0.16633899]
[1643837889630,1.5,2631.1,2630.6,0.16633899]
[1643837889830,1.5,2631.1,2630.0,0.82894943]
[1643837890031,1.5,2631.1,2629.7,0.19]
[1643837890229,1.5,2631.1,2629.6,2.27613467]
[1643837890432,1.5,2631.1,2629.5,0.19]
[1643837890630,1.5,2631.1,2628.5,0.00096]
[1643837890631,3.37726549,2631.0,2629.4,0.19]
[1643837890831,3.18403361,2631.0,2630.2,0.0012121]
[1643837891059,1.5,2631.1,2630.2,0.0012121]
[1643837891461,1.69,2631.1,2630.2,0.0012121]
[1643837891684,1.5,2631.1,2630.2,0.0012121]
[1643837891861,1.5,2631.1,2630.2,0.9525501]
[1643837892062,1.5,2631.1,2630.7,0.08004188]
[1643837892861,0.19,2632.0,2630.7,0.09449698]
[1643837893063,0.19,2632.0,2631.2,0.16128798]
[1643837893265,0.21699941,2632.3,2630.5,0.20238572]
[1643837893266,0.59632941,2632.3,2630.5,0.20238572]
[1643837893461,0.59632941,2632.3,2630.5,0.007]
[1643837893462,0.19,2631.9,2630.5,0.007]
[1643837893662,0.01212252,2631.7,2630.5,0.007]
[1643837893862,0.19,2631.6,2630.5,0.007]
[1643837894061,0.01212252,2631.7,2630.5,0.007]
[1643837894062,0.20212252,2631.7,2630.5,0.007]
[1643837894710,0.86645845,2631.7,2630.5,0.92202213]
[1643837895307,0.86645845,2631.7,2630.5,0.007]
[1643837895707,0.67645845,2631.7,2630.5,0.007]
[1643837895906,0.86645845,2631.7,2630.5,0.007]
[1643837896515,0.67645845,2631.7,2630.5,0.007]
[1643837897112,0.00294788,2631.6,2630.5,0.007]
[1643837897311,0.00294788,2631.6,2631.0,0.18537941]
[1643837897711,0.00294788,2631.6,2631.1,0.0201177]
[1643837897911,0.00294788,2631.6,2631.1,0.02176358]
[1643837898110,0.00490217,2632.4,2631.0,0.18537941]
[1643837898308,0.00490217,2632.4,2630.6,0.66257]
[1643837898309,0.7971713,2631.7,2630.7,0.3]
[1643837898557,0.00490217,2632.4,2630.7,0.3]
[1643837898558,0.1899,2632.3,2630.7,0.1899]
[1643837898757,0.00490217,2632.4,2631.1,0.0128915]
[1643837898758,0.19490217,2632.4,2631.1,0.0128915]
[1643837898957,0.00490217,2632.4,2631.1,0.0128915]
[1643837899156,0.27639994,2632.6,2631.1,0.21572491]
[1643837899359,0.1899,2633.3,2632.6,0.9475271]
[1643837899559,1.49249647,2633.8,2632.6,0.8995]
[1643837899560,0.01960493,2633.1,2632.6,0.8995]
[1643837899760,0.78509272,2633.8,2632.6,0.91032081]
[1643837899961,1.79942981,2633.7,2632.6,0.0112305]
[1643837900160,1.79942981,2633.7,2631.2,1.27507596]
[1643837900161,0.01218254,2633.4,2631.5,0.1897]
[1643837900359,1.98932981,2633.3,2631.1,0.1899]
[1643837900560,1.98932981,2633.3,2631.4,0.20318949]
[1643837900561,0.01221222,2632.8,2631.4,0.20318949]
[1643837900758,0.37923,2633.3,2631.4,0.20318949]
[1643837900961,1.61049002,2633.2,2631.4,0.20318949]
[1643837901158,0.37923,2633.1,2631.4,0.20318949]
[1643837901358,10.5,2632.4,2631.4,0.20318949]
[1643837901659,10.5,2632.4,2632.3,0.0394609]
[1643837902908,10.5,2632.4,2632.2,0.00368192]
[1643837903607,8.4424,2632.4,2632.2,0.00368192]
[1643837903807,8.4424,2632.4,2632.3,0.66257]
[1643837904008,8.4424,2632.4,2632.3,0.86209227]
[1643837904207,8.4424,2632.4,2632.3,4.46209227]
[1643837904208,0.5862,2632.4,2632.3,4.46209227]
[1643837904408,0.50885489,2632.4,2632.3,1.64752227]
[1643837904713,0.50885489,2632.4,2632.3,2.84671497]
[1643837904908,0.50885489,2632.4,2632.1,0.1899]
[1643837904909,1.26958161,2632.2,2632.1,0.1899]
[1643837905118,0.50885489,2632.4,2631.8,0.1899]
[1643837905413,0.50885489,2632.4,2631.2,0.00080008]
[1643837905414,0.50885489,2632.4,2632.2,0.00378277]
[1643837906061,3.68203918,2632.3,2632.2,0.00378277]
[1643837906261,3.49624954,2632.3,2631.2,0.00080008]
[1643837906461,3.49624954,2632.3,2632.2,0.00378284]
[1643837906661,3.68557954,2632.3,2632.2,0.00378284]
[1643837907062,3.49624954,2632.3,2632.2,0.00378284]
[1643837907263,0.89624954,2632.3,2632.2,0.00378284]
[1643837907463,0.89624954,2632.3,2630.9,0.02076115]
[1643837907668,1.08557954,2632.3,2632.1,0.00378292]
[1643837907867,7.067e-05,2632.2,2632.1,0.00378292]
[1643837908064,0.50885489,2632.4,2632.1,0.00378292]
[1643837908766,0.50885489,2632.4,2631.9,0.19088764]
[1643837909564,0.50885489,2632.4,2631.2,1.94908025]
[1643837910009,0.50885489,2632.4,2631.3,0.23907892]
[1643837910221,0.50885489,2632.4,2631.3,0.68707892]
[1643837910412,0.50885489,2632.4,2631.9,0.11457]
[1643837910618,0.50885489,2632.4,2632.0,0.22127726]
[1643837910813,0.00380245,2633.2,2632.1,5.15]
[1643837911016,0.01520599,2633.9,2632.3,0.01220903]
[1643837911017,0.1899,2633.9,2632.3,0.01220903]
[1643837911312,0.1899,2633.9,2632.3,0.14539965]
[1643837911313,0.01219053,2633.9,2632.3,0.14539965]
[1643837911514,0.00380367,2633.2,2632.3,0.14539965]
[1643837911723,0.00380367,2633.2,2632.4,2.19668338]
[1643837911913,0.00380367,2633.2,2632.4,0.448]
[1643837912512,0.0124522,2634.0,2632.4,0.748]
[1643837912719,0.02,2634.4,2632.4,0.748]
[1643837912720,0.00518672,2633.2,2632.8,0.85100753]
[1643837913017,4.50518672,2633.2,2632.9,0.01294445]
[1643837913316,4.50518672,2633.2,2632.9,0.31294445]
[1643837913560,4.5,2633.2,2632.9,0.31294445]
[1643837913759,4.5,2633.2,2633.1,2.04868338]
[1643837913961,4.5,2633.2,2633.1,6.12206942]
[1643837913962,4.50380447,2633.2,2633.1,6.12206942]
[1643837914159,4.50380447,2633.2,2633.1,7.49868338]
[1643837914367,0.02,2633.8,2633.2,0.78358918]
[1643837914561,0.01521408,2633.9,2633.2,0.78358918]
[1643837914562,0.01521408,2633.9,2633.5,0.15042626]
[1643837914759,0.02,2635.4,2633.6,0.448]
[1643837914760,0.1897,2635.4,2633.6,0.448]
[1643837914959,0.20147641,2635.7,2633.6,0.448]
[1643837914960,0.1897,2635.6,2633.6,0.448]
[1643837915159,0.1897,2635.6,2633.8,0.92882049]
[1643837915160,0.66903122,2635.1,2633.8,0.92882049]
[1643837915366,0.1897,2635.2,2633.8,2.37682049]
[1643837915565,0.15034638,2635.7,2633.8,2.37682049]
[1643837915566,0.1656,2636.2,2634.1,0.03385066]
[1643837915760,0.1656,2636.2,2634.2,1.05227]
[1643837915761,1.79872252,2636.1,2634.2,1.05227]
[1643837915965,1.62902252,2636.0,2634.2,1.05227]
[1643837916160,0.1897,2636.1,2634.3,0.13819997]
[1643837916161,0.02,2635.9,2634.3,0.13819997]
[1643837916462,0.1897,2636.1,2634.8,0.01277037]
[1643837916662,0.1897,2636.4,2634.8,0.01277037]
[1643837917231,1.60888049,2636.3,2634.8,0.01277037]
[1643837917527,0.95164348,2636.0,2635.3,0.18936854]
[1643837917728,0.95164348,2636.0,2634.7,0.3]
[1643837917933,0.95164348,2636.0,2634.5,1.3]
[1643837917934,0.01256696,2635.8,2634.5,1.3]
[1643837918130,0.01256696,2635.8,2634.5,0.3]
[1643837918328,0.01256696,2635.8,2634.4,0.1897]
[1643837918529,0.1897,2635.7,2634.6,0.78976459]
[1643837918733,0.1897,2635.7,2634.6,0.3]
[1643837918931,0.1897,2635.7,2634.4,0.1897]
[1643837918932,0.01226666,2635.1,2634.4,0.1897]
[1643837919129,0.00521489,2635.3,2634.4,0.1897]
[1643837919529,0.00521489,2635.3,2634.4,0.0897]
[1643837919728,0.01205487,2635.4,2634.4,0.22082072]
[1643837919729,0.94120317,2635.0,2634.4,0.22082072]
[1643837919929,0.94641822,2635.0,2634.4,0.22082072]
[1643837920330,0.00521505,2635.0,2634.4,0.22082072]
[1643837920729,0.00521505,2635.0,2634.3,0.13819997]
[1643837920963,2.62605094,2636.1,2633.8,0.13819997]
[1643837920964,0.20204788,2635.1,2633.8,0.13819997]
[1643837921169,0.20204788,2635.1,2633.8,0.00477067]
[1643837921170,0.01260235,2634.5,2633.8,0.00477067]
[1643837921367,0.18933,2634.4,2633.8,0.00477067]
[1643837921566,0.37903,2634.4,2633.8,7.067e-05]
[1643837921762,0.0121993,2633.9,2633.8,7.067e-05]
[1643837921963,0.37903,2634.4,2633.8,7.067e-05]
[1643837921964,0.1897,2634.4,2633.8,7.067e-05]
[1643837922162,0.18933,2634.3,2633.1,0.00080183]
[1643837922364,0.18933,2634.3,2632.9,0.13819997]
[1643837922365,0.0125002,2634.6,2632.9,0.13819997]
[1643837922563,0.1897,2634.2,2632.9,0.15035951]
[1643837922762,0.18971,2634.3,2632.9,0.13819997]
[1643837922963,0.01216961,2635.1,2632.9,0.13819997]
[1643837922964,0.1897,2634.2,2632.9,0.13819997]
[1643837923166,0.01216961,2635.1,2632.9,0.13819997]
[1643837923167,0.1897,2634.7,2633.0,0.01275826]
[1643837923362,0.18971,2635.0,2633.0,0.01275826]
[1643837923363,0.37941,2635.0,2633.0,0.01275826]
[1643837923562,0.1897,2635.0,2633.0,0.01275826]
[1643837923762,6.0037876,2634.0,2633.0,0.01275826]
[1643837924262,5.9537876,2634.0,2632.9,0.13819997]
[1643837924725,0.87711653,2633.7,2633.1,0.20682823]
[1643837924909,5.95378752,2634.0,2633.1,0.20682823]
[1643837925111,5.95378752,2634.0,2633.0,0.01262355]
[1643837925112,0.1504,2633.9,2633.0,0.01262355]
[1643837925308,0.1504,2633.9,2632.1,0.1897]
[1643837925309,6.0,2633.5,2632.1,0.1897]
[1643837925512,6.0,2633.5,2631.1,0.19593028]
[1643837925513,6.0,2633.5,2631.8,0.1897]
[1643837925514,0.01289958,2633.1,2631.8,0.1897]
[1643837925716,0.01289958,2633.1,2631.5,0.1899]
[1643837926008,2.97605014,2633.4,2630.8,1.81631506]
[1643837926009,0.1899,2633.4,2631.4,0.01276248]
[1643837926208,6.0,2632.4,2631.4,0.01276248]
[1643837926410,6.0,2632.4,2631.5,0.1899]
[1643837927307,6.0,2632.4,2631.8,0.00146519]
[1643837927308,0.78957801,2632.2,2631.8,0.00146519]
[1643837927509,6.0,2632.4,2631.8,0.00146519]
[1643837927909,6.0,2632.4,2631.5,0.14136519]
[1643837928763,6.0,2632.4,2631.3,0.27639994]
[1643837928963,6.0,2632.4,2630.8,0.1144]
[1643837928964,6.0,2632.4,2630.8,0.1899]
[1643837929163,6.0,2632.4,2630.7,1.16553729]
[1643837929164,0.1899,2632.3,2630.7,0.01293729]
[1643837929363,0.87356097,2631.1,2630.7,0.01293729]
[1643837929565,0.87356097,2631.1,2630.5,0.007]
[1643837929961,4.5,2631.0,2630.5,0.007]
[1643837930163,4.69,2631.0,2630.5,0.007]
[1643837930764,0.18971,2630.9,2630.5,0.007]
[1643837930967,0.19,2630.8,2630.6,0.00145833]
[1643837931363,4.5,2631.0,2630.6,0.00145833]
[1643837931862,4.5,2631.0,2630.5,0.16987518]
[1643837932064,0.19,2631.9,2630.7,0.00485734]
[1643837932310,0.16,2632.6,2630.7,0.00485734]
[1643837932311,3.0,2630.8,2630.7,0.11925734]
[1643837932509,3.0,2630.8,2630.7,0.00485734]
[1643837932716,3.0,2630.8,2630.1,1.76580094]
[1643837932908,3.0,2630.8,2630.2,0.70703835]
[1643837933310,2.62215014,2632.5,2630.2,0.70703835]
[1643837933520,0.19,2632.4,2630.3,3.9631944]
[1643837933715,0.19,2632.6,2630.8,0.01270978]
[1643837934013,0.20295167,2632.8,2630.9,0.1899]
[1643837934216,15.08848304,2631.5,2630.9,0.4899]
[1643837934513,0.01295167,2632.8,2631.1,5.15]
[1643837934714,7.60251,2633.8,2631.1,5.15]
[1643837934715,3.0,2632.0,2631.8,0.01216268]
[1643837934913,0.0125948,2634.3,2631.9,4.60687219]
[1643837934914,0.01297736,2633.7,2631.9,4.60687219]
[1643837935114,0.82830316,2633.7,2632.3,0.90734709]
[1643837935313,0.82830316,2633.7,2632.0,1.0]
[1643837935515,1.01801316,2633.7,2632.1,0.1899]
[1643837935716,0.1899,2633.6,2631.6,1.1899]
[1643837935989,0.1899,2633.6,2631.6,1.4899]
[1643837936287,0.1899,2633.6,2631.8,0.73275123]
[1643837936288,0.90453697,2633.1,2631.8,0.73275123]
[1643837936486,0.90453697,2633.1,2631.7,0.1899]
[1643837936487,0.90453697,2633.1,2631.6,0.1899]
[1643837936887,0.00525746,2632.6,2631.6,0.19701171]
[1643837937084,0.00525746,2632.6,2631.7,0.81040999]
[1643837937386,0.01206058,2633.7,2633.0,437.9915528]
[1643837937584,0.27639994,2634.0,2633.0,437.9915528]
[1643837937783,0.96128348,2634.5,2633.2,0.83405303]
[1643837937983,0.77158348,2634.5,2633.2,0.85188998]
[1643837938183,0.1397,2634.4,2633.2,0.01783695]
[1643837938384,0.1397,2634.4,2633.0,437.9915528]
[1643837938987,0.32941,2634.4,2633.0,437.9915528]
[1643837939183,0.81660667,2634.1,2633.0,437.97371585]
[1643837939585,1.00631667,2634.1,2633.0,437.97371585]
[1643837940113,0.18971,2634.3,2633.0,437.97371585]
[1643837940312,0.1897,2634.2,2633.0,437.97371585]
[1643837940515,0.00525685,2633.7,2633.0,437.97371585]
[1643837940914,0.1897,2633.6,2633.0,437.97371585]
[1643837941118,1.5,2633.4,2633.0,437.97371585]
[1643837941317,0.1897,2633.3,2633.0,437.97371585]
[1643837941519,5.33971,2633.1,2633.0,437.97371585]
[1643837941719,0.1897,2633.1,2633.0,437.97371585]
[1643837941917,0.19495705,2633.3,2633.0,437.97371585]
[1643837942113,0.00525705,2633.3,2633.0,437.97371585]
[1643837942617,0.1897,2633.5,2633.1,0.01372883]
[1643837942818,0.1897,2634.5,2633.4,0.01231836]
[1643837943014,0.18971,2634.9,2633.4,0.01904677]
[1643837943015,0.02102424,2633.8,2633.4,0.01904677]
[1643837943216,0.02102424,2633.8,2633.4,0.01231836]
[1643837943465,0.02102424,2633.8,2633.1,0.00089923]
[1643837944066,0.1897,2634.0,2633.1,0.00089923]
[1643837944266,0.73300548,2633.4,2633.1,0.00089923]
[1643837944469,0.36040704,2633.2,2633.1,0.00089923]
[1643837944671,0.55010704,2633.2,2633.1,0.00089923]
[1643837944865,0.99250704,2633.2,2633.1,0.00089923]
[1643837945065,0.97941,2633.2,2633.0,427.46783055]
[1643837945265,5.3397,2633.1,2633.0,415.46637284]
[1643837945465,0.37941,2633.1,2633.0,413.75323904]
[1643837946065,5.7571882,2633.1,2633.0,407.07863782]
[1643837946265,3.27941,2633.1,2633.0,407.07377879]
[1643837946467,6.47941,2633.1,2633.0,392.06222169]
[1643837946671,6.47941,2633.1,2633.0,343.69233539]
[1643837946672,8.52277344,2633.1,2633.0,343.69233539]
[1643837946870,9.84437344,2633.1,2633.0,332.16046154]
[1643837947067,10.19244114,2633.1,2633.0,326.40853154]
[1643837947308,11.28283,2633.1,2633.0,311.65462154]
[1643837947509,11.28283,2633.1,2633.0,281.79000478]
[1643837947510,18.29643,2633.1,2633.0,281.79000478]
[1643837947715,17.40381656,2633.1,2633.0,264.44271628]
[1643837947908,17.39421656,2633.1,2633.0,242.31534628]
[1643837948110,18.06291785,2633.1,2633.0,229.96018678]
[1643837948408,46.27972436,2633.1,2633.0,216.20904678]
[1643837948609,48.83108738,2633.1,2633.0,211.07664004]
[1643837948810,48.83108738,2633.1,2633.0,194.44155004]
[1643837948811,12.94077958,2633.1,2633.0,194.44155004]
[1643837949008,12.94077958,2633.1,2633.0,188.73959004]
[1643837949009,10.50041653,2633.1,2633.0,188.73959004]
[1643837949210,10.50281653,2633.1,2633.0,177.33460004]
[1643837949407,17.50681653,2633.1,2633.0,164.64469835]
[1643837949611,74.93287702,2633.1,2633.0,154.74225882]
[1643837949809,82.36124007,2633.1,2633.0,138.10867272]
[1643837950010,84.25944637,2633.1,2633.0,126.69989992]
[1643837950208,116.72872321,2633.1,2633.0,107.83851646]
[1643837950412,121.89498101,2633.1,2633.0,85.68836989]
[1643837950610,1.3,2633.0,2631.2,0.01944971]
[1643837950814,1.3,2633.0,2629.5,0.1897]
[1643837950815,2.78335689,2630.9,2629.5,0.1897]
[1643837951087,1.01799169,2630.6,2629.1,0.1899]
[1643837951283,8.12e-06,2629.9,2629.7,0.21576782]
[1643837951478,8.12e-06,2629.9,2627.7,1.206]
[1643837951479,0.20189715,2629.8,2627.8,0.19]
[1643837951683,6.45578824,2629.8,2627.8,0.19]
[1643837951883,0.1728,2629.7,2627.9,0.04206334]
[1643837952082,1.01217693,2628.7,2628.0,0.19]
[1643837952278,1.01217693,2628.7,2627.1,0.13138]
[1643837952279,0.63771,2628.6,2627.1,0.13138]
[1643837952478,1.0,2628.4,2627.1,0.13138]
[1643837952677,1.271e-05,2628.5,2628.3,0.0046584]
[1643837952877,1.56735,2628.8,2628.3,0.0046584]
[1643837952878,0.95176,2628.8,2628.3,0.0046584]
[1643837953079,1e-05,2628.8,2628.3,0.0046584]
[1643837953577,0.13819997,2629.0,2627.3,0.01272405]
[1643837953578,0.13820997,2629.0,2628.5,0.18908812]
[1643837953779,4e-05,2629.4,2628.5,0.18908812]
[1643837954079,4e-05,2629.4,2628.2,0.12908812]
[1643837954910,4e-05,2629.4,2627.4,0.1902]
[1643837955309,38.23087037,2629.3,2627.4,0.1902]
[1643837955510,0.0122895,2628.9,2627.4,0.1402]
[1643837955710,0.0122895,2628.9,2627.5,0.20748784]
[1643837955909,0.3,2629.2,2628.8,5.7]
[1643837956210,0.15068997,2629.5,2628.8,5.7]
[1643837956211,8.997e-05,2629.5,2628.8,5.7]
[1643837956410,0.95131,2630.0,2628.8,5.7]
[1643837956411,0.3372,2630.0,2628.8,5.7]
[1643837956613,1.0,2630.2,2628.8,5.72175895]
[1643837956809,1.0,2630.2,2628.9,0.19]
[1643837956810,0.1432,2629.9,2628.9,0.19]
[1643837957014,1.736e-05,2629.3,2628.8,5.7]
[1643837957709,1.736e-05,2629.3,2628.9,0.01912877]
[1643837958311,1.736e-05,2629.3,2628.8,5.66912877]
[1643837958565,1.00001736,2629.3,2628.8,5.66912877]
[1643837958762,1.00031736,2629.3,2628.8,3.98387152]
[1643837958963,0.1656,2629.2,2628.8,3.98387152]
[1643837959164,1.80375,2629.0,2628.8,3.98387152]
[1643837959365,1.80375,2629.0,2628.3,4.67e-05]
[1643837959366,1.5144,2628.9,2628.3,4.67e-05]
[1643837959568,1.5144,2628.9,2627.2,0.19]
[1643837959569,1.0,2628.6,2627.4,0.72906417]
[1643837959774,1.3,2628.4,2626.3,0.01]
[1643837959966,1.3,2628.4,2626.4,0.1902]
[1643837959967,0.95205,2627.8,2626.4,0.1902]
[1643837960165,0.95205,2627.8,2626.1,6.48100837]
[1643837960166,0.95227,2627.4,2626.2,0.2002]
[1643837960367,0.95227,2627.4,2626.2,0.01]
[1643837960368,1.16736,2627.4,2626.2,0.01]
[1643837960565,1.16736,2627.4,2626.2,0.20667478]
[1643837960566,0.16931025,2627.0,2626.2,0.20667478]
[1643837960765,1.80869038,2627.0,2626.2,0.01]
[1643837960967,0.1832,2626.9,2626.1,6.4688]
[1643837961165,0.1832,2626.9,2625.0,0.1902]
[1643837961166,3.85759,2626.8,2625.0,0.1902]
[1643837961367,0.21509,2626.5,2625.0,0.1902]
[1643837961577,0.21509,2626.5,2624.8,0.0077]
[1643837961578,0.3,2626.0,2624.8,0.0077]
[1643837961764,0.3,2626.0,2625.2,0.20272755]
[1643837961966,0.91781186,2626.2,2625.2,0.20272755]
[1643837962223,0.91781186,2626.2,2625.1,0.91371107]
[1643837962224,2.21781186,2626.2,2624.9,0.005]
[1643837962418,2.21781186,2626.2,2624.8,0.0077]
[1643837962419,0.95272,2625.9,2624.8,0.0077]
[1643837962620,0.95272,2625.9,2623.6,0.005]
[1643837962621,1.0,2625.2,2623.6,0.1904]
[1643837962818,0.448,2625.1,2624.6,0.00096]
[1643837963220,0.448,2625.1,2625.0,5.7]
[1643837963418,0.748,2625.1,2625.0,5.7]
[1643837963618,0.748,2625.1,2624.8,0.005]
[1643837963819,0.748,2625.1,2623.7,0.1904]
[1643837963820,21.33590116,2625.0,2623.7,0.1904]
[1643837964019,0.448,2624.9,2623.8,0.00096]
[1643837964219,0.80531862,2624.2,2623.0,0.1905]
[1643837964419,1.40137,2624.1,2623.2,0.00096]
[1643837964822,1.40137,2624.1,2623.5,0.00140943]
[1643837964823,5.0,2624.0,2623.5,0.00140943]
[1643837965019,5.0,2624.0,2622.1,0.01230528]
[1643837965020,0.448,2623.9,2622.2,0.11869267]
[1643837965217,0.448,2623.9,2623.3,0.88953049]
[1643837965419,0.95337,2624.1,2623.3,0.88953049]
[1643837965420,1.14387,2624.1,2623.3,0.88953049]
[1643837965619,0.3,2624.2,2623.4,0.16847428]
[1643837965822,2.86054,2624.5,2623.4,0.17347428]
[1643837966065,0.21509,2625.4,2623.4,0.17347428]